bitfinex/quotes_BTCUSD_20250410
["timestamp","ask_amount","ask_price","bid_price","bid_amount"]
[1744327254506,0.0021356,79519.0,79518.0,0.88645454]
[1744327254712,0.0021356,79519.0,79518.0,0.90993746]
[1744327255108,0.0021356,79519.0,79518.0,0.89815784]
[1744327255308,0.0021356,79519.0,79518.0,0.92156914]
[1744327255864,0.0457356,79521.0,79520.0,0.251509]
[1744327256017,0.0457356,79521.0,79520.0,0.39099158]
[1744327256223,0.0457356,79521.0,79520.0,0.40086947]
[1744327256927,0.0457356,79521.0,79520.0,0.54638947]
[1744327257106,0.0457356,79521.0,79520.0,0.56892907]
[1744327258452,0.0457356,79521.0,79520.0,0.58150407]
[1744327260714,0.0912356,79521.0,79520.0,0.17190007]
[1744327260886,0.0912356,79521.0,79520.0,0.31742007]
[1744327261090,0.0912356,79521.0,79520.0,0.56892907]
[1744327261292,0.0912356,79521.0,79520.0,0.55809277]
[1744327261497,0.0912356,79521.0,79520.0,0.54638947]
[1744327261790,0.0912356,79521.0,79520.0,0.56980077]
[1744327262540,0.0912356,79521.0,79520.0,0.55722577]
[1744327263603,0.0912356,79521.0,79520.0,0.56895251]
[1744327267568,0.0912356,79521.0,79520.0,0.31744351]
[1744327268106,0.09779169,79521.0,79520.0,0.31744351]
[1744327268319,0.0912356,79521.0,79520.0,0.31744351]
[1744327268538,0.0912356,79521.0,79520.0,0.30571677]
[1744327273384,0.3553156,79521.0,79520.0,0.03328919]
[1744327273543,0.012575,79519.0,79518.0,0.14548]
[1744327273742,0.357887,79519.0,79518.0,0.15522222]
[1744327273944,0.357887,79519.0,79518.0,0.14548]
[1744327274388,0.0938,79513.0,79512.0,0.0234113]
[1744327274565,0.0938,79513.0,79512.0,0.3055411]
[1744327275105,0.106376,79513.0,79512.0,0.03315352]
[1744327275285,0.106376,79513.0,79512.0,0.17863352]
[1744327282356,0.106376,79513.0,79512.0,0.03315352]
[1744327285142,0.106376,79513.0,79512.0,0.00974222]
[1744327285382,0.106376,79513.0,79511.0,0.0001356]
[1744327285383,0.26411,79512.0,79511.0,0.0001356]
[1744327290747,0.35951,79512.0,79511.0,0.0001356]
[1744327297766,0.35951,79512.0,79511.0,0.0002356]
[1744327302445,0.31171,79512.0,79511.0,0.0002356]
[1744327302636,0.26411,79512.0,79511.0,0.0002356]
[1744327303195,0.00655719,79515.0,79511.0,0.0002356]
[1744327303414,0.25153,79514.0,79512.0,0.01008468]
[1744327303634,0.264106,79514.0,79513.0,0.0234113]
[1744327304033,0.264106,79514.0,79513.0,0.03349598]
[1744327304875,0.012576,79514.0,79513.0,0.03349598]
[1744327305076,0.01913319,79515.0,79513.0,0.03349598]
[1744327305448,0.01913319,79515.0,79514.0,0.0234113]
[1744327305914,0.00655719,79515.0,79514.0,0.03349598]
[1744327306581,0.00655719,79515.0,79514.0,0.04607198]
[1744327306981,0.00655719,79515.0,79514.0,0.03349598]
[1744327307808,0.00655719,79515.0,79514.0,0.17297956]
[1744327309052,0.00655719,79515.0,79514.0,0.16040356]
[1744327310025,0.01913319,79515.0,79514.0,0.03349598]
[1744327310387,0.06503319,79515.0,79514.0,0.03349598]
[1744327310785,0.06503319,79515.0,79514.0,0.01008468]
[1744327311019,0.012576,79512.0,79511.0,0.0002356]
[1744327311202,0.26411,79512.0,79511.0,0.01008519]
[1744327311406,0.26411,79512.0,79511.0,0.0002356]
[1744327312027,0.26411,79512.0,79511.0,0.01008519]
[1744327314974,0.26411,79512.0,79511.0,0.0002356]
[1744327315148,0.31091,79512.0,79511.0,0.0002356]
[1744327315344,0.31091,79512.0,79511.0,0.01012434]
[1744327315626,0.31091,79512.0,79511.0,0.0002356]
[1744327315887,0.35681,79512.0,79511.0,0.0002356]
[1744327318498,0.49825843,79512.0,79511.0,6e-07]
[1744327318904,0.49825843,79512.0,79488.0,0.1457754]
[1744327318905,0.355287,79489.0,79488.0,0.1457754]
[1744327319344,0.355287,79489.0,79488.0,0.15567994]
[1744327320579,0.355287,79489.0,79488.0,0.01023994]
[1744327321038,0.355287,79489.0,79488.0,0.0003354]
[1744327322416,0.49673543,79489.0,79488.0,4e-07]
[1744327324702,0.355287,79489.0,79488.0,4e-07]
[1744327325115,0.046,79498.0,79493.0,0.251592]
[1744327325317,0.046,79498.0,79489.0,0.264187]
[1744327325318,0.264163,79497.0,79489.0,0.264187]
[1744327325528,0.264163,79497.0,79494.0,0.01053657]
[1744327325824,0.012579,79497.0,79495.0,0.01053657]
[1744327326039,0.012579,79497.0,79491.0,0.251598]
[1744327326181,0.012579,79497.0,79492.0,0.01053657]
[1744327326391,0.264163,79497.0,79492.0,0.01053657]
[1744327328268,0.310158,79498.0,79493.0,0.251594]
[1744327328625,0.310158,79498.0,79494.0,0.01053657]
[1744327329602,0.012579,79496.0,79494.0,0.01053657]
[1744327329760,0.07797805,79500.0,79494.0,0.01053657]
[1744327329761,0.06540005,79500.0,79498.0,0.251577]
[1744327330167,0.06540005,79500.0,79499.0,0.01053657]
[1744327331203,0.264141,79503.0,79499.0,0.01053657]
[1744327331776,0.297045,79509.0,79503.0,0.25156]
[1744327332003,0.264129,79507.0,79502.0,0.251565]
[1744327332419,0.251555,79506.0,79503.0,0.01053657]
[1744327332815,0.264132,79506.0,79503.0,0.01053657]
[1744327332978,0.251558,79505.0,79499.0,0.39105958]
[1744327333178,0.264132,79506.0,79500.0,0.26195624]
[1744327333597,0.251558,79505.0,79500.0,0.26195624]
[1744327335744,0.264135,79505.0,79500.0,0.26195624]
[1744327337109,0.012577,79507.0,79500.0,0.27453424]
[1744327337378,0.251555,79506.0,79500.0,0.27453424]
[1744327337527,0.264132,79506.0,79500.0,0.27453424]
[1744327338083,0.251558,79505.0,79500.0,0.27453424]
[1744327339588,0.251558,79505.0,79500.0,0.26195624]
[1744327339830,0.251563,79503.0,79500.0,0.01038724]
[1744327344338,0.012577,79504.0,79500.0,0.01038724]
[1744327345048,0.264138,79504.0,79500.0,0.01038724]
[1744327346276,0.264145,79502.0,79500.0,0.01038724]
[1744327346623,0.251572,79500.0,79496.0,0.14544]
[1744327346823,0.251572,79500.0,79497.0,0.01017243]
[1744327347024,0.012578,79501.0,79497.0,0.26175143]
[1744327347229,0.012577,79504.0,79498.0,0.251576]
[1744327347429,0.012577,79504.0,79499.0,0.01018114]
[1744327347715,0.264138,79504.0,79500.0,0.251571]
[1744327347913,0.2970704,79512.0,79499.0,0.01018114]
[1744327347914,0.0455354,79512.0,79507.0,0.251547]
[1744327348073,0.0001354,79512.0,79507.0,0.012577]
[1744327348257,0.0001354,79512.0,79509.0,0.251541]
[1744327348659,0.0001354,79512.0,79510.0,0.01018114]
[1744327348863,0.0127114,79512.0,79510.0,0.01018114]
[1744327349117,0.2642474,79512.0,79506.0,0.264127]
[1744327349319,0.25154,79511.0,79506.0,0.264127]
[1744327349703,0.264116,79511.0,79506.0,0.25155]
[1744327349885,0.251542,79510.0,79506.0,0.25155]
[1744327350088,0.264116,79511.0,79506.0,0.25155]
[1744327350590,0.251542,79510.0,79506.0,0.25155]
[1744327350785,0.251545,79509.0,79503.0,0.26414]
[1744327350987,0.264152,79500.0,79497.0,0.34]
[1744327351187,0.264152,79500.0,79497.0,0.46690758]
[1744327351410,0.264173,79493.0,79492.0,0.75759977]
[1744327352016,0.047,79494.0,79493.0,0.34]
[1744327352216,0.251591,79495.0,79493.0,0.34]
[1744327353062,0.264166,79496.0,79492.0,0.41759977]
[1744327353355,0.047,79499.0,79492.0,0.41759977]
[1744327353356,0.251578,79499.0,79493.0,0.604171]
[1744327353561,0.311139,79504.0,79499.0,0.012578]
[1744327353702,0.264139,79504.0,79499.0,0.012578]
[1744327354104,0.012578,79502.0,79498.0,0.251576]
[1744327354757,0.264146,79502.0,79498.0,0.251576]
[1744327354917,0.012578,79499.0,79495.0,0.34]
[1744327355124,0.26415,79501.0,79496.0,0.12690758]
[1744327355532,0.012578,79502.0,79496.0,0.37848858]
[1744327356835,0.251569,79501.0,79496.0,0.37848858]
[1744327357094,0.251569,79501.0,79496.0,0.12690758]
[1744327357229,0.251569,79501.0,79496.0,0.37848958]
[1744327357434,0.012578,79499.0,79496.0,0.12690758]
[1744327357672,0.251578,79498.0,79496.0,0.12690758]
[1744327357878,0.264156,79498.0,79496.0,0.12690758]
[1744327358071,0.264156,79498.0,79493.0,0.34]
[1744327358275,0.251585,79496.0,79493.0,0.34]
[1744327358437,0.012579,79497.0,79493.0,0.34]
[1744327358699,0.264157,79498.0,79493.0,0.34]
[1744327359255,0.012578,79499.0,79494.0,0.352579]
[1744327359559,0.251575,79500.0,79495.0,0.251586]
[1744327360499,0.251577,79499.0,79494.0,0.352579]
[1744327360702,0.264149,79501.0,79495.0,0.02276436]
[1744327361878,0.264149,79501.0,79496.0,0.251582]
[1744327362080,0.264149,79501.0,79497.0,0.01015554]
[1744327362734,0.251574,79500.0,79497.0,0.01015554]
[1744327363307,0.264146,79502.0,79497.0,0.26173454]
[1744327363625,0.25157,79501.0,79497.0,0.26173454]
[1744327364558,0.251556,79505.0,79500.0,0.012578]
[1744327364760,0.264129,79507.0,79501.0,0.264144]
[1744327365062,0.0466,79510.0,79507.0,0.264125]
[1744327365480,0.0466,79510.0,79508.0,0.01014593]
[1744327366038,0.298142,79510.0,79508.0,0.01014593]
[1744327366278,0.298142,79510.0,79506.0,0.012577]
[1744327366480,0.298142,79510.0,79507.0,0.01014593]
[1744327366687,0.251545,79509.0,79507.0,0.01014593]
[1744327366911,0.251545,79509.0,79505.0,0.251554]
[1744327367187,0.251545,79509.0,79508.0,0.01014593]
[1744327367425,0.251545,79509.0,79505.0,0.251554]
[1744327367890,0.251545,79509.0,79506.0,0.01014593]
[1744327372474,0.251549,79508.0,79506.0,0.01014593]
[1744327372680,0.251555,79506.0,79501.0,0.397006]
[1744327372975,0.251555,79506.0,79502.0,0.38847597]
[1744327374287,0.264128,79507.0,79502.0,0.40105397]
[1744327376309,0.012577,79507.0,79503.0,0.251561]
[1744327376501,0.012577,79507.0,79504.0,0.12690758]
[1744327376863,0.059177,79510.0,79494.0,0.1]
[1744327376864,0.012578,79503.0,79494.0,0.1]
[1744327377062,0.264148,79501.0,79497.0,0.34]
[1744327377268,0.251569,79501.0,79497.0,0.34]
[1744327377809,0.251569,79501.0,79497.0,0.591579]
[1744327379815,0.251569,79501.0,79497.0,0.604158]
[1744327381476,0.060378,79502.0,79497.0,0.604158]
[1744327382348,0.0127114,79512.0,79507.0,0.012577]
[1744327382579,0.012576,79511.0,79506.0,0.251551]
[1744327382765,0.2642484,79512.0,79506.0,0.251551]
[1744327383564,0.0127114,79512.0,79507.0,0.251548]
[1744327383802,0.0001354,79512.0,79507.0,0.251548]
[1744327384966,0.0001354,79512.0,79508.0,0.251543]
[1744327387794,0.0001354,79512.0,79511.0,0.264113]
[1744327388920,0.0001354,79512.0,79511.0,0.73102058]
[1744327390470,0.0001354,79512.0,79511.0,0.74105946]
[1744327392915,0.0001354,79512.0,79511.0,0.84105946]
[1744327396583,0.0001354,79512.0,79511.0,1.25865923]
[1744327402846,0.0001354,79512.0,79511.0,1.31880008]
[1744327403656,0.0446389,79536.0,79535.0,0.264034]
[1744327403862,0.04477438,79536.0,79535.0,0.39094158]
[1744327404072,0.04477438,79536.0,79535.0,0.40071432]
[1744327406352,0.00013548,79536.0,79535.0,0.40071432]
[1744327407625,0.01270748,79536.0,79535.0,0.00977274]
[1744327407800,0.05990748,79536.0,79535.0,0.00977274]
[1744327408002,0.251461,79535.0,79531.0,0.4854]
[1744327408431,0.251461,79535.0,79531.0,0.34]
[1744327410683,0.09273548,79536.0,79534.0,0.251461]
[1744327411550,0.09273548,79536.0,79532.0,0.264044]
[1744327411759,0.09273548,79536.0,79534.0,0.251463]
[1744327411976,0.00013548,79536.0,79535.0,0.13948058]
[1744327412994,0.00013548,79536.0,79535.0,0.28488058]
[1744327415639,0.00013548,79536.0,79535.0,0.62488058]
[1744327418221,0.00013548,79536.0,79535.0,0.47948058]
[1744327418421,0.00013548,79536.0,79535.0,0.62484058]
[1744327418945,0.00013548,79536.0,79535.0,0.61226758]
[1744327419143,0.04733548,79536.0,79535.0,0.61226758]
[1744327419357,0.04733548,79536.0,79535.0,0.62484058]
[1744327420352,0.00013548,79536.0,79535.0,0.62484058]
[1744327420610,0.00013548,79536.0,79535.0,0.63439261]
[1744327422553,0.00013548,79536.0,79535.0,0.48903261]
[1744327422878,0.00013548,79536.0,79535.0,0.63439261]
[1744327430116,0.00013548,79536.0,79535.0,0.48903261]
[1744327430321,0.00013548,79536.0,79535.0,0.63439261]
[1744327431060,0.00013548,79536.0,79535.0,0.62181961]
[1744327431281,0.00013548,79536.0,79535.0,0.63439261]
[1744327431510,0.05920748,79536.0,79535.0,0.49491203]
[1744327431746,0.05920748,79536.0,79535.0,0.00955203]
[1744327431975,0.10730748,79536.0,79535.0,0.00955203]
[1744327432209,0.107174,79528.0,79527.0,0.75759977]
[1744327432659,0.107174,79528.0,79527.0,0.76706933]
[1744327433003,0.358657,79528.0,79527.0,0.76706933]
[1744327433230,0.358657,79528.0,79527.0,0.34946956]
[1744327433956,0.358657,79528.0,79527.0,0.00946956]
[1744327434456,0.310597,79516.0,79515.0,0.48536]
[1744327434661,0.0465,79516.0,79515.0,0.61226758]
[1744327434871,0.0465,79516.0,79515.0,0.63431314]
[1744327435082,0.0465,79516.0,79515.0,0.48895314]
[1744327436861,0.0465,79516.0,79515.0,0.34946956]
[1744327437050,0.360297,79516.0,79515.0,0.00946956]
[1744327437593,0.012576,79515.0,79514.0,0.14536]
[1744327438137,0.264104,79514.0,79509.0,0.01268023]
[1744327438353,0.012576,79511.0,79510.0,0.00961092]
[1744327438763,0.012576,79511.0,79506.0,0.34]
[1744327438960,0.012576,79511.0,79507.0,0.00968687]
[1744327439166,0.012576,79514.0,79507.0,0.27381087]
[1744327439371,0.012576,79514.0,79508.0,0.251543]
[1744327439546,0.264106,79514.0,79509.0,0.00968732]
[1744327439964,0.251534,79512.0,79509.0,0.00968732]
[1744327440165,0.251534,79512.0,79507.0,0.251547]
[1744327440368,0.251534,79512.0,79508.0,0.00969055]
[1744327441008,0.012577,79509.0,79508.0,0.02207903]
[1744327441202,0.13460084,79509.0,79508.0,0.00969055]
[1744327441419,0.012578,79501.0,79490.0,1.29352]
[1744327441751,0.313147,79501.0,79491.0,0.34]
[1744327442006,0.313147,79501.0,79500.0,0.01016175]
[1744327442007,0.33647084,79501.0,79500.0,0.01016175]
[1744327442183,0.33647084,79501.0,79500.0,0.0004712]
[1744327442184,0.35101169,79501.0,79500.0,0.0004712]
[1744327442789,0.36264829,79501.0,79500.0,0.0004712]
[1744327443348,0.34810744,79501.0,79500.0,0.0004712]
[1744327443777,0.33647084,79501.0,79500.0,0.0004712]
[1744327444334,0.38617084,79501.0,79500.0,0.0004712]
[1744327445945,0.40071169,79501.0,79500.0,0.0004712]
[1744327446161,0.52761927,79501.0,79500.0,0.0004712]
[1744327446371,0.52761927,79501.0,79500.0,2e-07]
[1744327446560,0.356287,79489.0,79488.0,4e-07]
[1744327448155,0.058579,79495.0,79488.0,4e-07]
[1744327448370,0.012579,79492.0,79488.0,4e-07]
[1744327448591,0.251606,79490.0,79489.0,0.01038183]
[1744327448792,0.01258,79489.0,79488.0,4e-07]
[1744327450768,0.058579,79495.0,79488.0,4e-07]
[1744327450769,0.0461,79498.0,79494.0,0.251591]
[1744327450980,0.012578,79500.0,79494.0,0.26417]
[1744327451170,0.01270859,79501.0,79496.0,0.012579]
[1744327451171,0.00013059,79501.0,79496.0,0.012579]
[1744327451458,0.00013059,79501.0,79498.0,0.251578]
[1744327451658,0.00013059,79501.0,79499.0,0.12690758]
[1744327451892,0.00013059,79501.0,79499.0,0.13720002]
[1744327452674,0.251572,79500.0,79499.0,0.13720002]
[1744327452875,0.26415,79500.0,79499.0,0.01029244]
[1744327453078,0.251586,79496.0,79491.0,0.40962]
[1744327453285,0.251586,79496.0,79491.0,0.53652758]
[1744327453494,0.012579,79493.0,79492.0,0.01029244]
[1744327453726,0.311776,79493.0,79492.0,0.01029244]
[1744327453899,0.264187,79489.0,79488.0,4e-07]
[1744327454670,0.309387,79489.0,79488.0,4e-07]
[1744327454873,0.309387,79489.0,79488.0,0.01029949]
[1744327455344,0.251607,79489.0,79488.0,0.01029949]
[1744327455751,0.01258,79490.0,79488.0,0.01029949]
[1744327455929,0.264186,79490.0,79488.0,0.01029949]
[1744327457313,0.01258,79490.0,79488.0,0.01029949]
[1744327457576,0.264186,79490.0,79488.0,0.01029949]
[1744327458119,0.01258,79489.0,79488.0,0.01029949]
[1744327458921,0.08342879,79489.0,79488.0,0.01029949]
[1744327459110,0.12862879,79489.0,79488.0,0.01029949]
[1744327459313,0.12862879,79489.0,79488.0,4e-07]
[1744327459514,0.27007722,79489.0,79488.0,4e-07]
[1744327459966,0.2817067,79489.0,79488.0,4e-07]
[1744327463608,0.2817067,79489.0,79468.0,2e-07]
[1744327463609,0.0928,79479.0,79468.0,2e-07]
[1744327463809,0.37161685,79462.0,79461.0,6e-07]
[1744327464023,0.52177322,79462.0,79461.0,6e-07]
[1744327464226,0.012586,79453.0,79452.0,2e-07]
[1744327464444,0.27888685,79441.0,79440.0,4e-07]
[1744327464653,0.27888685,79441.0,79431.0,0.002]
[1744327464654,0.012588,79435.0,79434.0,6e-07]
[1744327464927,0.19923643,79435.0,79434.0,6e-07]
[1744327465135,0.22248522,79435.0,79434.0,6e-07]
[1744327465633,0.2341147,79435.0,79434.0,0.00045283]
[1744327466439,0.2341147,79435.0,79431.0,0.002]
[1744327466440,0.012589,79432.0,79431.0,0.002]
[1744327466661,0.15403743,79432.0,79431.0,0.00204552]
[1744327466854,0.02712985,79432.0,79431.0,0.00204552]
[1744327467082,0.05037864,79432.0,79431.0,0.00204552]
[1744327467488,0.1889157,79432.0,79431.0,5.2e-07]
[1744327472376,0.03487827,79432.0,79431.0,5.2e-07]
[1744327472662,0.02421848,79432.0,79431.0,0.01164799]
[1744327472854,0.02421848,79432.0,79431.0,5.2e-07]
[1744327473261,0.26434,79443.0,79435.0,0.251775]
[1744327473381,0.264346,79441.0,79436.0,0.012588]
[1744327473583,0.251737,79448.0,79436.0,0.012588]
[1744327473584,0.012586,79450.0,79443.0,0.251752]
[1744327473810,0.012587,79447.0,79444.0,0.01152768]
[1744327474005,0.012587,79447.0,79444.0,0.01148768]
[1744327474241,0.26433,79446.0,79439.0,0.264351]
[1744327474415,0.26433,79446.0,79440.0,0.12690758]
[1744327474621,0.012587,79446.0,79441.0,0.01152102]
[1744327474829,0.012586,79450.0,79441.0,0.01152102]
[1744327474830,0.012586,79452.0,79445.0,0.012587]
[1744327475026,0.012586,79450.0,79446.0,0.01143653]
[1744327475255,0.012587,79445.0,79440.0,0.13949558]
[1744327475427,0.012586,79451.0,79443.0,0.251751]
[1744327475631,0.012586,79451.0,79441.0,0.012587]
[1744327475632,0.264322,79448.0,79444.0,0.01143653]
[1744327475833,0.264314,79451.0,79444.0,0.12690758]
[1744327476041,0.012587,79445.0,79444.0,0.12690758]
[1744327476383,0.012587,79444.0,79436.0,0.012588]
[1744327476579,0.264339,79443.0,79437.0,0.12690758]
[1744327476806,0.012588,79438.0,79437.0,0.12690758]
[1744327477086,0.264339,79443.0,79437.0,0.12690758]
[1744327477087,0.012587,79441.0,79437.0,0.12690758]
[1744327477317,0.251746,79445.0,79440.0,0.012588]
[1744327477492,0.012588,79440.0,79437.0,0.12690758]
[1744327477632,0.012587,79441.0,79437.0,0.37867858]
[1744327478036,0.012587,79441.0,79437.0,0.12690758]
[1744327480179,0.012587,79441.0,79435.0,0.591777]
[1744327480180,0.012588,79436.0,79435.0,0.34]
[1744327480374,0.012588,79436.0,79435.0,0.46690758]
[1744327480375,0.264363,79436.0,79435.0,0.46690758]
[1744327480761,0.012588,79439.0,79435.0,0.46690758]
[1744327481153,0.264356,79438.0,79435.0,0.46690758]
[1744327481354,0.264363,79436.0,79435.0,0.46690758]
[1744327481966,0.264363,79436.0,79435.0,0.34]
[1744327482167,0.012588,79435.0,79434.0,0.34]
[1744327482367,0.264376,79432.0,79431.0,5.2e-07]
[1744327482689,0.012589,79432.0,79431.0,5.2e-07]
[1744327483231,0.264374,79433.0,79431.0,5.2e-07]
[1744327483684,0.012589,79433.0,79431.0,5.2e-07]
[1744327483886,0.26435,79440.0,79432.0,0.251787]
[1744327484092,0.264357,79438.0,79433.0,0.012589]
[1744327484431,0.264358,79438.0,79433.0,0.13949658]
[1744327484632,0.26435,79440.0,79434.0,0.26437]
[1744327484843,0.251723,79453.0,79440.0,0.012588]
[1744327485056,0.26433,79446.0,79440.0,0.012588]
[1744327485261,0.264339,79444.0,79439.0,0.251762]
[1744327485466,0.012587,79443.0,79438.0,0.264354]
[1744327485623,0.264336,79444.0,79438.0,0.264354]
[1744327485831,0.012587,79445.0,79439.0,0.012588]
[1744327486022,0.251737,79448.0,79443.0,0.012587]
[1744327486228,0.012586,79453.0,79435.0,0.251775]
[1744327486229,0.012584,79462.0,79457.0,0.012585]
[1744327486415,0.012584,79463.0,79458.0,0.012585]
[1744327486619,0.27586629,79462.0,79456.0,0.251711]
[1744327486822,0.012585,79459.0,79453.0,0.264305]
[1744327487067,0.012585,79459.0,79454.0,0.12690758]
[1744327487262,0.01158929,79462.0,79458.0,0.264287]
[1744327487554,0.27586729,79462.0,79457.0,0.264292]
[1744327487719,0.01158929,79461.0,79457.0,0.264292]
[1744327487926,0.01158929,79461.0,79460.0,0.012584]
[1744327488105,0.01158929,79461.0,79460.0,0.13949158]
[1744327488304,0.01158929,79461.0,79460.0,0.47949158]
[1744327488509,0.01158929,79461.0,79460.0,0.46690758]
[1744327488708,0.012584,79464.0,79461.0,0.34]
[1744327488911,0.012584,79464.0,79463.0,0.34]
[1744327490455,0.26427,79464.0,79463.0,0.34]
[1744327490858,0.251709,79457.0,79453.0,0.01281475]
[1744327491072,0.251709,79457.0,79429.0,0.276976]
[1744327491073,0.01259,79427.0,79426.0,0.41759977]
[1744327491274,0.01259,79427.0,79411.0,0.264445]
[1744327491275,0.264409,79422.0,79415.0,0.41759977]
[1744327491493,0.264409,79422.0,79421.0,0.00014554]
[1744327494010,0.28762938,79422.0,79421.0,0.00014554]
[1744327494905,0.29923617,79422.0,79421.0,0.00014554]
[1744327499647,0.012591,79419.0,79412.0,0.012592]
[1744327499868,0.264418,79420.0,79413.0,0.25967155]
[1744327500077,0.01160679,79422.0,79418.0,0.012591]
[1744327500276,0.01160679,79422.0,79419.0,0.12690758]
[1744327500477,0.01160679,79421.0,79419.0,0.12690758]
[1744327500727,0.01160679,79421.0,79420.0,0.00782455]
[1744327501079,0.01160679,79421.0,79419.0,0.12690758]
[1744327501283,0.01160679,79421.0,79420.0,0.00782455]
[1744327501740,0.01160679,79421.0,79419.0,0.12690758]
[1744327501939,0.01160679,79421.0,79420.0,0.00809721]
[1744327502676,0.02419779,79421.0,79419.0,0.12690758]
[1744327502857,0.012591,79420.0,79419.0,0.12690758]
[1744327503059,0.264419,79419.0,79414.0,0.34]
[1744327503639,0.251802,79428.0,79422.0,0.01259]
[1744327503837,0.01259,79427.0,79422.0,0.01259]
[1744327504072,0.264396,79426.0,79420.0,0.012591]
[1744327505110,0.251814,79424.0,79418.0,0.251832]
[1744327505425,0.251814,79424.0,79419.0,0.12690758]
[1744327505924,0.264404,79424.0,79419.0,0.12690758]
[1744327507467,0.2518,79428.0,79421.0,0.012591]
[1744327507667,0.2518,79428.0,79418.0,0.264423]
[1744327507668,0.012588,79440.0,79428.0,0.01259]
[1744327507879,0.012588,79436.0,79430.0,0.34]
[1744327508082,0.012588,79436.0,79422.0,0.01259]
[1744327508083,0.01259,79422.0,79420.0,0.34]
[1744327508293,0.01259,79425.0,79421.0,0.12690758]
[1744327508474,0.01259,79428.0,79421.0,0.37872958]
[1744327508475,0.251805,79427.0,79421.0,0.37872958]
[1744327508609,0.264395,79427.0,79421.0,0.37872958]
[1744327509223,0.264395,79427.0,79421.0,0.12690758]
[1744327509420,0.01259,79428.0,79422.0,0.01259]
[1744327509620,0.01259,79428.0,79424.0,0.34]
[1744327509823,0.251771,79438.0,79431.0,0.25179]
[1744327510028,0.264359,79438.0,79431.0,0.264379]
[1744327510286,0.251775,79436.0,79431.0,0.012589]
[1744327510482,0.012587,79442.0,79430.0,0.012589]
[1744327510693,0.27595755,79441.0,79434.0,0.012589]
[1744327510898,0.012588,79439.0,79433.0,0.251784]
[1744327511101,0.012588,79439.0,79435.0,0.00806041]
[1744327511486,0.012588,79438.0,79436.0,0.00806041]
[1744327511883,0.264356,79438.0,79433.0,0.251781]
[1744327512019,0.264356,79438.0,79437.0,0.00806041]
[1744327512217,0.264356,79438.0,79433.0,0.251781]
[1744327512423,0.264356,79438.0,79434.0,0.00806041]
[1744327512928,0.264366,79435.0,79434.0,0.00806041]
[1744327513307,0.264366,79435.0,79431.0,0.12690758]
[1744327513505,0.264366,79435.0,79434.0,0.00806041]
[1744327513711,0.251791,79431.0,79426.0,0.34]
[1744327513930,0.012589,79432.0,79428.0,0.00013534]
[1744327514144,0.264386,79429.0,79428.0,0.00013534]
[1744327517639,0.3436994,79429.0,79428.0,0.00013534]
[1744327517897,0.38072265,79429.0,79428.0,0.00013534]
[1744327518115,0.53378944,79429.0,79428.0,0.00013534]
[1744327518899,0.39234101,79429.0,79428.0,0.00013534]
[1744327526996,0.36910436,79429.0,79428.0,0.00013534]
[1744327527192,0.32130436,79429.0,79428.0,0.00013534]
[1744327527399,0.32130436,79429.0,79428.0,0.26452534]
[1744327527400,0.01161836,79429.0,79428.0,0.26452534]
[1744327527764,0.01161836,79429.0,79428.0,0.39963153]
[1744327528103,0.01161836,79438.0,79431.0,0.264377]
[1744327528321,0.01161836,79438.0,79432.0,0.13949658]
[1744327528529,0.01161836,79438.0,79433.0,0.264373]
[1744327528726,0.01161836,79438.0,79434.0,0.12690758]
[1744327528932,0.01161836,79438.0,79437.0,0.012588]
[1744327529128,0.012587,79444.0,79437.0,0.13949558]
[1744327529340,0.012587,79444.0,79438.0,0.12690758]
[1744327529553,0.264339,79443.0,79438.0,0.39937907]
[1744327530132,0.01166144,79442.0,79438.0,0.39937907]
[1744327530706,0.01166144,79442.0,79438.0,0.14761107]
[1744327530887,0.012587,79442.0,79438.0,0.13502307]
[1744327532423,0.012586,79451.0,79445.0,0.251744]
[1744327532623,0.012586,79451.0,79442.0,0.012587]
[1744327532624,0.251743,79446.0,79442.0,0.012587]
[1744327532911,0.26433,79446.0,79443.0,0.00811549]
[1744327533314,0.251759,79441.0,79438.0,0.12690758]
[1744327533517,0.012589,79430.0,79428.0,0.00013534]
[1744327533717,0.012589,79429.0,79428.0,0.00013534]
[1744327534118,0.299279,79435.0,79429.0,0.012589]
[1744327534119,0.012589,79434.0,79429.0,0.012589]
[1744327534321,0.0475,79444.0,79437.0,0.264358]
[1744327534547,0.012586,79450.0,79443.0,0.012587]
[1744327534687,0.012588,79437.0,79425.0,0.01259]
[1744327534883,0.012589,79434.0,79429.0,0.12690758]
[1744327535085,0.264383,79430.0,79429.0,0.12690758]
[1744327535349,0.012589,79429.0,79426.0,0.16744]
[1744327536769,0.012589,79429.0,79424.0,0.41759977]
[1744327538004,0.25179,79432.0,79424.0,0.43018977]
[1744327538167,0.264383,79430.0,79425.0,0.251808]
[1744327538568,0.012589,79429.0,79422.0,0.251817]
[1744327538794,0.012589,79429.0,79421.0,0.012591]
[1744327540078,0.012589,79429.0,79422.0,0.01259]
[1744327540259,0.012589,79429.0,79423.0,0.251815]
[1744327540664,0.012589,79429.0,79428.0,0.00822163]
[1744327540888,0.251781,79435.0,79428.0,0.00822163]
[1744327541094,0.012589,79432.0,79428.0,0.00822163]
[1744327541973,0.26437,79434.0,79429.0,0.13949658]
[1744327542552,0.0466,79442.0,79429.0,0.13949658]
[1744327542553,0.012587,79442.0,79433.0,0.34]
[1744327542778,0.0466,79450.0,79433.0,0.34]
[1744327542779,0.012588,79435.0,79433.0,0.34]
[1744327543060,0.264386,79429.0,79411.0,0.02]
[1744327543524,0.28768813,79429.0,79411.0,0.02]
[1744327543726,0.28768813,79429.0,79411.0,0.032592]
[1744327543926,0.29934025,79429.0,79415.0,0.251839]
[1744327544177,0.29934025,79429.0,79416.0,0.012591]
[1744327544393,0.29934025,79429.0,79415.0,0.251839]
[1744327544597,0.29934025,79429.0,79418.0,0.012591]
[1744327545230,0.04754325,79429.0,79422.0,0.264406]
[1744327545434,0.04754325,79429.0,79414.0,0.34]
[1744327545834,0.04754325,79429.0,79414.0,0.352592]
[1744327546016,0.02424112,79429.0,79414.0,0.352592]
[1744327546689,0.02424112,79429.0,79415.0,0.012592]
[1744327549368,0.02424112,79429.0,79415.0,0.26443]